lending/lending_fUSD_20250411
["ID","MTS","AMOUNT","RATE_DAILY","PERIOD"]
[357713730,1744381838409,-174.912,0.00019986,2]
[357713732,1744381838418,-11565.6786984,0.00019986,2]
[357713734,1744381838427,-2297.9804237,0.00019986,2]
[357713736,1744381838436,-482.8476022,0.00019986,2]
[357713738,1744381838447,-5402.1641659,0.00019986,2]
[357713740,1744381838456,-193.9943754,0.00019986,2]
[357713742,1744381838466,-164.16,0.0001999,2]
[357713744,1744381838474,-164.16,0.0001999,2]
[357713746,1744381838483,-164.16,0.0001999,2]
[357713748,1744381838493,-164.16,0.0001999,2]
[357713750,1744381838502,-5847.89672155,0.00019999,2]
[357713752,1744381838511,-186.82898468,0.00019999,2]
[357713753,1744381838520,-572.0,0.0002,2]
[357713754,1744381838529,-1988887.05814782,0.0002,2]
[357713755,1744381838541,-340033.78431041,0.0002,2]
[357713756,1744381838552,-892.581,0.0002,2]
[357713757,1744381838563,-17537.3442,0.0002,2]
[357713761,1744381839785,-55677.18602513,0.0002,2]
[357713762,1744381839797,-3191.39276772,0.0002,2]
[357713764,1744381839809,-2887.46126082,0.0002,2]
[357713766,1744381839901,-77383.10973466,0.0002,2]
[357713767,1744381839933,-1086.56570953,0.0002,2]
[357713768,1744381840179,-341.86579367,0.0002,2]
[357713769,1744381840192,-931.45271812,0.0002,2]
[357713770,1744381840205,-37152.1450175,0.0002,2]
[357713771,1744381840215,-79444.07623135,0.0002,2]
[357713772,1744381840224,-300.44946588,0.0002,2]
[357713773,1744381840234,-1050.481746,0.0002,2]
[357713774,1744381840243,-150.0,0.0002,2]
[357713775,1744381840253,-150.561,0.0002,2]
[357713776,1744381840263,-150.0,0.0002,2]
[357713777,1744381840273,-150.0,0.0002,2]
[357713778,1744381840282,-150.0,0.0002,2]
[357713779,1744381840294,-5816.84402441,0.0002,2]
[357713780,1744381840307,-566.61842696,0.0002,2]
[357713781,1744381840317,-855.69233926,0.0002,2]
[357713782,1744381840327,-1437.0,0.0002,2]
[357713783,1744381840339,-915.083,0.0002,2]
[357713784,1744381840350,-1278.0,0.0002,2]
[357713785,1744381840359,-796.0,0.0002,2]
[357713786,1744381840369,-4145.0,0.0002,2]
[357713787,1744381840381,-544.0,0.0002,2]
[357713788,1744381840391,-150.0,0.0002,2]
[357713789,1744381840400,-974.53582304,0.0002,2]
[357713790,1744381840410,-150.0,0.0002,2]
[357713791,1744381840419,-150.0,0.0002,2]
[357713792,1744381840429,-232.08225746,0.0002,2]
[357713793,1744381840440,-500.0,0.0002,2]
[357713794,1744381840452,-500.0,0.0002,2]
[357713795,1744381840461,-993.97455656,0.0002,2]
[357713796,1744381840470,-2471128.50917864,0.0002,2]
[357713797,1744381840483,-292.25561129,0.0002,2]
[357713839,1744381843670,-468.65068328,0.0002,2]
[357713854,1744381845765,-46.34931672,0.0002,2]
[357713856,1744381845775,-8123.44962328,0.0002,2]
[357713866,1744381845871,-1190.71399994,0.0002,2]
[357713877,1744381845972,-1636.47598641,0.0002,2]
[357713879,1744381845984,-147783.58559251,0.0002,2]
[357713881,1744381845995,-33662.76566267,0.0002,2]
[357713894,1744381846140,-2477.35420051,0.0002,2]
[357713895,1744381846153,-974.19955102,0.0002,2]
[357713905,1744381874696,462.72,0.00027425,30]
[357713908,1744382020571,200.0,0.000299,30]
[357713910,1744382926285,-898.37218396,0.00018379,2]
[357714922,1744383031781,-185.93781604,0.00018379,2]
[357714923,1744383031791,-500.0,0.00018877,2]
[357714925,1744383031801,-76.23760613,0.00019222,2]
[357714926,1744383031812,-173.76239387,0.00019222,2]
[357714927,1744383031822,-250.0,0.00019223,2]
[357714929,1744383031832,-165.84,0.00019313,2]
[357714930,1744383031842,-387.4360815,0.00019399,2]
[357714931,1744383031852,-232.11577773,0.00019468,2]
[357714933,1744383031870,-767.88422227,0.00019468,2]
[357714935,1744383031880,-123.58153593,0.00019547,7]
[357714936,1744383031892,-76.41846407,0.00019547,7]
[357714937,1744383031902,-169.07,0.00019784,2]
[357714939,1744383031911,-151.52153593,0.00019886,2]
[357714940,1744383031923,-164.09696407,0.00019886,2]
[357714942,1744383031932,-150.99,0.00019886,2]
[357714943,1744383031943,-988.38,0.00019886,2]
[357714944,1744383031953,-30.53303593,0.00019886,2]
[357714946,1744383031965,-9969.45696407,0.00019886,2]
[357714947,1744383031975,-150.99,0.00019886,2]
[357714948,1744383031984,-158.84817871,0.00019888,2]
[357714950,1744383031996,-364.28182129,0.00019888,2]
[357714951,1744383032005,-1143.08,0.00019888,2]
[357714953,1744383032015,-166.66,0.00019898,2]
[357714954,1744383032024,-133.30742971,0.000199,2]
[357714955,1744383032036,-527.22235995,0.000199,2]
[357714958,1744383032067,-60.54251034,0.000199,2]
[357714959,1744383032076,-593.13373296,0.000199,2]
[357714960,1744383032088,-469.9405751,0.000199,2]
[357714962,1744383032100,-1056.39,0.000199,2]
[357715164,1744383037826,-483.72397645,0.000199,2]
[357715167,1744383037835,-18100.59803355,0.000199,2]
[357715181,1744383037954,-17216.32240769,0.000199,2]
[357715182,1744383037965,-5800.0,0.000199,2]
[357715184,1744383037974,-34580.15851676,0.000199,2]
[357715185,1744383037983,-468.20231578,0.000199,2]
[357715186,1744383037992,-351.03228882,0.000199,2]
[357715188,1744383038002,-166.37049196,0.000199,2]
[357715189,1744383038011,-672.04612822,0.000199,2]
[357715190,1744383038020,-500.0,0.00019973,2]
[357715192,1744383038029,-500.0,0.00019973,2]
[357715193,1744383038039,-500.0,0.00019973,2]
[357715194,1744383038048,-1995.802,0.00019973,2]
[357715196,1744383038057,-174.912,0.00019973,2]
[357715197,1744383038066,-6435.2190209,0.00019986,2]
[357715199,1744383038075,-3281.58081,0.00019986,2]
[357715200,1744383038085,-999.4583619,0.00019986,2]
[357715201,1744383038094,-464.26864557,0.00019986,2]
[357715203,1744383038104,-4474.2169155,0.00019986,2]
[357715204,1744383038114,-12478.6280191,0.00019986,2]
[357715205,1744383038123,-192.3617238,0.00019986,2]
[357715207,1744383038132,-151.48,0.0001999,2]
[357715208,1744383038141,-151.48,0.0001999,2]
[357715209,1744383038151,-151.48,0.0001999,2]
[357715211,1744383038160,-151.48,0.0001999,2]
[357715212,1744383038169,-151.48,0.0001999,2]
[357715214,1744383038179,-151.48,0.0001999,2]
[357715215,1744383038188,-151.48,0.0001999,2]
[357715216,1744383038198,-151.48,0.0001999,2]
[357715218,1744383038207,-317.96127505,0.00019999,2]
[357715219,1744383038216,-2145863.18412025,0.0002,2]
[357715220,1744383038229,-340033.78431041,0.0002,2]
[357715221,1744383038248,-8008.0,0.0002,2]
[357715222,1744383038259,-8219.6,0.0002,2]
[357715223,1744383038270,-15603.0,0.0002,2]
[357715224,1744383038282,-82015.880931,0.0002,2]
[357715294,1744383040241,-405.40500001,0.0002,2]
[357715297,1744383040309,-533.97071232,0.0002,2]
[357715298,1744383040321,-2572678.90804956,0.0002,2]
[357715300,1744383040333,-969.38660328,0.0002,2]
[357715301,1744383040345,-28256.20824995,0.0002,2]
[357715406,1744383044938,-290.5770612,0.00019399,2]
[357715407,1744383044948,-3827.7131299,0.00019986,2]
[357715408,1744383044958,-3386.45497402,0.0002,2]
[357715409,1744383044970,-5883.52751136,0.0002,2]
[357715423,1744383046950,-221.08998602,0.000199,3]
[357715424,1744383046959,-2277.23637983,0.0002,2]
[357715425,1744383046973,-8524.92475953,0.0002,2]
[357715426,1744383046984,-407.74784004,0.0002,2]
[357715427,1744383046995,-818.36346,0.0002,2]
[357718581,1744383081856,431.87,0.00027425,30]
[357726376,1744383316241,-2000.0,0.0002,4]
[357726377,1744383335479,-1000.0,0.00018836,2]
[357726378,1744383337146,-86.27,0.00018836,2]
[357726379,1744383337175,-217.9327959,0.00019399,2]
[357726380,1744383337204,-179.21,0.000198,2]
[357726381,1744383337232,-166.37049195,0.000199,2]
[357726382,1744383337261,-182.47920474,0.000199,2]
[357726383,1744383337291,-167.73750741,0.00019973,2]
[357726384,1744383340022,-300.0,0.00019973,2]
[357726385,1744384055761,286.68355756,0.00017768,2]
[357726386,1744384055784,921.26644244,0.00017768,2]
[357726387,1744384067696,500.0,0.000254,30]
[357726388,1744384130121,403.07,0.00027425,30]
[357726398,1744384232289,-250.0,0.00019,2]
[357726399,1744384232299,-163.4495969,0.00019399,2]
[357726400,1744384232308,-165.84,0.00019674,2]
[357726401,1744384232319,-207.22691781,0.00019777,2]
[357726402,1744384232331,-3753.77308219,0.00019777,2]
[357726403,1744384232341,-235.412,0.00019777,2]
[357726404,1744384232350,-698.0,0.00019777,2]
[357726405,1744384232360,-300.0,0.00019899,2]
[357726406,1744384232369,-468.20231578,0.000199,2]
[357726407,1744384232379,-182.47920473,0.000199,2]
[357726408,1744384232388,-944.78218426,0.000199,2]
[357726409,1744384232398,-166.37049196,0.000199,2]
[357726410,1744384232407,-564.30563427,0.000199,2]
[357726430,1744384238316,-3684.05751077,0.000199,2]
[357726432,1744384238327,-175.51614441,0.000199,2]
[357726434,1744384238338,-672.04612822,0.000199,2]
[357726436,1744384238347,-481.35,0.00019954,2]
[357726438,1744384238357,-500.0,0.00019973,2]
[357726441,1744384238367,-500.0,0.00019973,2]
[357726442,1744384238376,-500.0,0.00019973,2]
[357726444,1744384238386,-179.42,0.0001998,2]
[357726446,1744384238396,-192.36172477,0.00019986,2]
[357726447,1744384238405,-331.46849196,0.00019986,2]
[357726448,1744384238417,-14979.64322574,0.00019986,2]
[357726449,1744384238428,-1383.6518242,0.00019986,2]
[357726450,1744384238437,-845.7410468,0.00019986,2]
[357726451,1744384238560,-5062.3923284,0.00019986,2]
[357726452,1744384238783,-525.2148523,0.00019986,2]
[357726453,1744384238794,-2865.3586865,0.00019986,2]
[357726454,1744384238804,-499.72918165,0.00019986,2]
[357726455,1744384238817,-1035.9201208,0.00019986,2]
[357726456,1744384238828,-499.7291811,0.00019986,2]
[357726457,1744384238837,-1995.802,0.00019999,2]
[357726458,1744384238847,-174.912,0.00019999,2]
[357726459,1744384238856,-186.82898468,0.00019999,2]
[357726460,1744384238865,-317.96127505,0.00019999,2]
[357726461,1744384238875,-2306585.07998496,0.0002,2]
[357726462,1744384238886,-340033.78431041,0.0002,2]
[357726471,1744384240438,-56227.10870343,0.0002,2]
[357726472,1744384240653,-19.80340828,0.0002,2]
[357726473,1744384240799,-10000.40784915,0.0002,2]
[357726505,1744384246770,-454.64521959,0.00019777,2]
[357726506,1744384246782,-666.35478041,0.00019777,2]
[357726507,1744384246792,-151.48,0.0001999,2]
[357726508,1744384246801,-151.48,0.0001999,2]
[357726509,1744384246810,-151.48,0.0001999,2]
[357726510,1744384246819,-151.48,0.0001999,2]
[357726511,1744384246830,-151.48,0.0001999,2]
[357726512,1744384246839,-151.48,0.0001999,2]
[357726513,1744384246848,-2733.64880068,0.0002,2]
[357726514,1744384246859,-502.5,0.0002,2]
[357726515,1744384246940,-820.9887,0.0002,2]
[357726516,1744384247038,-161.32616254,0.0002,2]
[357726517,1744384247149,-382.52063985,0.0002,2]
[357726518,1744384466673,2016.78242447,0.00033,120]
[357726520,1744384712500,-250.0,0.00034,120]
[357726521,1744384712532,-28.1,0.00036,120]
[357726522,1744385151098,-213.0,0.00022,20]
[357726523,1744385156698,1078.73355756,6.94e-05,2]
[357726524,1744385156722,2000.0,6.94e-05,2]
[357726525,1744385156747,4955.42306302,6.94e-05,2]
[357726527,1744385229158,278.5955,0.000153,2]
[357726529,1744385235351,1147.55,0.0001755,2]
[357726532,1744385292534,376.19,0.00027425,30]
[357726533,1744385315745,-200.0,0.00018905,2]
[357726534,1744385321053,1713.31644244,0.000149,2]
[357726562,1744385432256,-608.149018,0.00018905,2]
[357726563,1744385432266,-250.0,0.00019,2]
[357726564,1744385432277,-200.0,0.00019285,7]
[357726565,1744385432286,-5515.05412337,0.00019399,2]
[357726566,1744385432328,-1231.85132041,0.00019399,2]
[357726567,1744385432340,-428.59140228,0.00019399,2]
[357726568,1744385432490,-383.12875825,0.00019399,2]
[357726569,1744385432501,-5450.527,0.00019399,2]
[357726570,1744385432513,-540.49795588,0.00019399,2]
[357726572,1744385438277,-393.44123345,0.00019399,2]
[357726573,1744385438287,-326.27731637,0.00019399,5]
[357726574,1744385438299,-1043.62077548,0.00019399,5]
[357726575,1744385438310,-1454.24614478,0.00019399,5]
[357726576,1744385438322,-1333.79158089,0.00019399,5]
[357726577,1744385438335,-382.85607921,0.00019399,5]
[357726578,1744385438348,-548.35263034,0.00019399,5]
[357726579,1744385438360,-4315.16040471,0.00019399,5]
[357726580,1744385438372,-735.24684451,0.00019399,5]
[357726581,1744385438383,-1840.57138119,0.00019399,5]
[357726582,1744385438397,-15164.23194688,0.00019399,5]
[357726583,1744385438408,-163.4495969,0.00019399,2]
[357726584,1744385438417,-250.0,0.00019407,2]
[357726585,1744385438427,-810.04,0.00019767,2]
[357726586,1744385438436,-1147.55,0.00019814,2]
[357726587,1744385438446,-204.92,0.00019852,2]
[357726588,1744385438456,-1000.0,0.00019861,2]
[357726589,1744385438465,-850.0,0.00019899,2]
[357726590,1744385438475,-2131.08604063,0.000199,2]
[357726591,1744385438486,-284.37605279,0.000199,2]
[357726592,1744385438495,-166.37049195,0.000199,2]
[357726593,1744385438505,-2809.21389444,0.000199,2]
[357726594,1744385438514,-448.03075214,0.000199,2]
[357726595,1744385438523,-608.78042851,0.00019973,2]
[357726596,1744385438533,-500.0,0.00019973,2]
[357726597,1744385438542,-500.0,0.00019973,2]
[357726598,1744385438551,-1995.802,0.00019986,2]
[357726599,1744385438560,-174.912,0.00019986,2]
[357726600,1744385438570,-5847.89672155,0.00019999,2]
[357726602,1744385438580,-167.29283797,0.00019999,2]
[357726604,1744385438589,-251.83237551,0.00019999,2]
[357726606,1744385438599,-317.96127505,0.00019999,2]
[357726608,1744385438608,-297593.68276839,0.0002,2]
[357726610,1744385438619,-4751.55500028,0.0002,2]
[357726612,1744385438631,-1062.29555533,0.0002,2]
[357726614,1744385438642,-22220.87097642,0.0002,2]
[357726616,1744385438653,-1451644.10339425,0.0002,2]
[357726618,1744385438663,-570264.41405565,0.0002,2]
[357726620,1744385438672,-150.0,0.0002,2]
[357726622,1744385438681,-150.0,0.0002,2]
[357726624,1744385438691,-150.0,0.0002,2]
[357726626,1744385438701,-5816.84402441,0.0002,2]
[357726628,1744385438711,-566.61842696,0.0002,2]
[357726630,1744385438720,-855.69233926,0.0002,2]
[357726632,1744385438729,-353.35,0.0002,2]
[357726634,1744385438739,-150.0,0.0002,2]
[357726636,1744385438748,-974.53582304,0.0002,2]
[357726638,1744385438758,-150.0,0.0002,2]
[357726640,1744385438767,-150.561,0.0002,2]
[357726642,1744385438776,-188.0,0.0002,2]
[357726644,1744385438785,-796.0,0.0002,2]
[357726646,1744385438794,-1437.0,0.0002,2]
[357726648,1744385438803,-1278.0,0.0002,2]
[357726650,1744385438813,-544.0,0.0002,2]
[357726652,1744385438822,-915.083,0.0002,2]
[357726654,1744385438831,-575.0,0.0002,2]
[357726656,1744385438841,-4145.0,0.0002,2]
[357726658,1744385438850,-850.481747,0.0002,2]
[357726660,1744385438860,-150.0,0.0002,2]
[357726662,1744385438869,-150.0,0.0002,2]
[357726663,1744385438878,-232.08225746,0.0002,2]
[357726665,1744385438887,-408925.8041001,0.0002,2]
[357726667,1744385438898,-340033.78431041,0.0002,2]
[357726669,1744385438909,-268.05207988,0.0002,2]
[357726670,1744385438922,-1031.75586833,0.0002,2]
[357726671,1744385438933,-2212.78060816,0.0002,2]
[357726672,1744385438944,-2079.24975989,0.0002,2]
[357726673,1744385439198,-3292.34612183,0.0002,2]
[357726674,1744385439210,-3012.18350575,0.0002,2]
[357726675,1744385439221,-534.82997,0.0002,2]
[357726676,1744385439233,-999.42965019,0.0002,2]
[357726683,1744385440334,-14045.13266174,0.0002,2]
[357726684,1744385440346,-713.97602152,0.0002,2]
[357726685,1744385440393,-179339.16912812,0.0002,2]
[357726686,1744385440559,-447.336641,0.0002,2]
[357726687,1744385440571,-1049.41419005,0.0002,2]
[357726688,1744385440584,-1685.77121904,0.0002,2]
[357726689,1744385440595,-1007.52312096,0.0002,2]
[357726690,1744385440611,-289.15000193,0.0002,2]
[357726691,1744385440623,-12657.86084069,0.0002,2]
[357726692,1744385440634,-1000.0,0.0002,2]
[357726693,1744385440776,-316490.81979834,0.0002,2]
[357726694,1744385440788,-398.09970515,0.0002,2]
[357726695,1744385440799,-23643.44920508,0.0002,2]
[357726696,1744385440811,-1705.5582732,0.0002,2]
[357726697,1744385440823,-23077.21835679,0.0002,2]
[357726707,1744385443236,-485.44999993,0.0002,2]
[357726708,1744385443248,-423.95581672,0.0002,2]
[357726709,1744385443259,-805.78275374,0.0002,2]
[357726710,1744385443270,-9601.30391237,0.0002,2]
[357726711,1744385443391,-507.53028692,0.0002,2]
[357726712,1744385443404,-5219.12795026,0.0002,2]
[357726725,1744385444111,-1908676.49408456,0.0002,2]
[357726726,1744385444123,-78661.30559273,0.0002,2]
[357726727,1744385444157,-5694.39325844,0.0002,2]
[357726728,1744385444168,-13521.95647282,0.0002,2]
[357726729,1744385444180,-515.811067,0.0002,2]
[357726730,1744385444191,-641.99246739,0.0002,2]
[357726731,1744385444202,-565.99524606,0.0002,2]
[357726732,1744385444214,-986.084731,0.0002,2]
[357726733,1744385444245,-2074412.2483815,0.0002,2]
[357726735,1744385446344,-74088.14560667,0.0002,2]
[357726736,1744385446379,-4719.1269524,0.0002,2]
[357726737,1744385446419,-149252.43398719,0.0002,2]
[357726738,1744385446431,-39292.67442012,0.0002,2]
[357726739,1744385446457,-12996.73955785,0.0002,2]
[357726740,1744385446469,-646.48478668,0.0002,2]
[357726741,1744385446505,-2000.0,0.0002,2]
[357726742,1744385446642,-980.88,0.0002,2]
[357726746,1744385454388,-20000.0,0.00021,14]
[357726747,1744385472178,-20000.0,0.00021,14]
[357726748,1744385597302,178.75687,0.0002,23]
[357726749,1744385762366,-1000.0,0.000194,7]
[357726750,1744385763608,-300.0,0.000194,7]
[357726751,1744385763641,-700.0,0.000195,7]
[357726752,1744385764349,-1000.0,0.000195,7]
[357726753,1744385768889,-750.0,0.000195,7]
[357726754,1744385792388,-150.0,0.000195,7]
[357726755,1744385792433,-850.0,0.000196,7]
[357726756,1744385794979,-1000.0,0.000196,7]
[357726757,1744385796144,-1000.0,0.000196,7]
[357726758,1744385801184,-200.0,0.000196,7]
[357726759,1744385841963,-850.0,0.000196,7]
[357726760,1744385841998,-10.0,0.000197,7]
[357726761,1744385845831,-1000.0,0.000197,7]
[357726762,1744385902851,299.06,0.00018,2]
[357726763,1744386097673,239.25,0.00018,2]
[357726764,1744386227650,191.4,0.00018,2]
[357726765,1744386302169,1998.0,0.00033,120]
[357726766,1744386328069,1087.11,0.00017293,2]
[357726767,1744386391030,188.59594,0.000248,34]
[357726768,1744386391086,188.59594,0.000273,39]
[357726769,1744386391138,188.59594,0.000298,44]
[357726777,1744386552210,153.12,0.00018,2]
[357726778,1744386604096,299.492,0.00033,120]
[357726844,1744386638571,-19594.0,0.00019094,2]
[357726845,1744386638581,-165.84,0.00019144,2]
[357726846,1744386638590,-200.0,0.00019193,7]
[357726847,1744386638600,-177.0703966,0.00019399,2]
[357726848,1744386638608,-1000.0,0.000194,7]
[357726849,1744386638618,-2000.0,0.000195,7]
[357726850,1744386638628,-1195.79,0.00019557,2]
[357726851,1744386638637,-1087.11,0.00019557,2]
[357726852,1744386638647,-1000.0,0.00019567,2]
[357726853,1744386638656,-3000.0,0.000196,7]
[357726854,1744386638665,-4100.0,0.000197,7]
[357726855,1744386638675,-5100.0,0.000198,7]
[357726856,1744386638684,-500.0,0.00019873,2]
[357726857,1744386638693,-342.4614645,0.00019873,2]
[357726858,1744386638702,-217.0,0.00019899,2]
[357726859,1744386638711,-175.51614441,0.000199,2]
[357726860,1744386638720,-1000.0,0.000199,7]
[357726861,1744386638730,-182.47920474,0.000199,2]
[357726862,1744386638739,-232.47236426,0.000199,2]
[357726863,1744386638751,-384.7904434,0.000199,2]
[357726864,1744386638762,-2214.97928904,0.000199,2]
[357726865,1744386638773,-298.6871681,0.000199,2]
[357726866,1744386638782,-500.0,0.00019973,2]
[357726867,1744386638791,-162.71441075,0.00019973,2]
[357726868,1744386638801,-1596.642,0.0001998,2]
[357726869,1744386638813,-174.91306585,0.0001998,2]
[357726870,1744386638822,-1061.85078082,0.00019999,5]
[357726871,1744386638831,-1061.8507808,0.00019999,5]
[357726872,1744386638840,-1061.85078082,0.00019999,5]
[357726873,1744386638849,-1061.85078082,0.00019999,5]
[357726874,1744386638860,-1061.85078082,0.00019999,5]
[357726875,1744386638870,-1061.85078082,0.00019999,5]
[357726876,1744386638879,-1159249.34505155,0.0002,2]
[357726877,1744386638891,-340033.78431041,0.0002,2]
[357726882,1744386640539,-214.771189,0.00018998,2]
[357726883,1744386640549,-13865.9014418,0.0002,2]
[357726884,1744386640560,-1321.51258215,0.0002,2]
[357726885,1744386640693,-24173.71914199,0.0002,2]
[357726886,1744386640935,-372.49349999,0.0002,2]
[357726888,1744386641134,-947.66428876,0.0002,2]
[357726912,1744386646972,-518.74317875,0.000199,2]
[357726913,1744386646983,-437.98014083,0.0002,2]
[357726914,1744386647049,-16691.564558,0.0002,2]
[357726915,1744386647063,-39870.14403068,0.0002,2]
[357726917,1744386647244,-34.91739139,0.0002,2]
[357726918,1744386647258,-2728.89998616,0.0002,2]
[357726919,1744386647271,-656.38446974,0.0002,2]
[357726920,1744386647282,-759.32349982,0.0002,2]
[357726921,1744386647294,-37371.41563122,0.0002,2]
[357726922,1744386673206,-188.59593,0.0002,23]
[357726923,1744386679383,361.62,0.00027425,30]
[357726924,1744386685574,-3000.0,0.00021,14]
[357726925,1744386709379,151.15,0.00018,7]
[357726926,1744386810544,150.0,0.00017,2]
[357726928,1744386810865,150.0,0.00018,2]
[357726929,1744386843419,-178.75687169,0.0002,23]
[357726930,1744386849492,188.59594,0.0002,23]
[357726933,1744386875402,150.0,0.00018,2]
[357726935,1744386939385,162.46,0.00018,2]
[357726939,1744387258725,188.59594,0.0002,23]
[357726941,1744387468455,978.39,0.00017639,2]
[357726942,1744387686192,337.51,0.00027425,30]
[357726954,1744387760224,251.0,0.0002475,30]
[357726957,1744387831520,-250.0,0.00019,2]
[357726958,1744387831529,-50.0,0.00019281,2]
[357726959,1744387831540,-154.92,0.00019281,2]
[357726960,1744387831550,-181.689,0.00019331,7]
[357726961,1744387831628,-18.311,0.00019331,7]
[357726962,1744387831638,-177.0703967,0.00019399,2]
[357726963,1744387831647,-179.21,0.00019456,2]
[357726964,1744387831656,-1000.0,0.00019557,2]
[357726965,1744387831665,-165.85,0.00019557,2]
[357726966,1744387831674,-250.0,0.00019626,2]
[357726967,1744387831684,-500.0,0.00019753,2]
[357726968,1744387831693,-152.0,0.00019764,2]
[357726969,1744387831702,-1723.74422068,0.00019764,2]
[357726970,1744387831713,-2237.25577932,0.00019764,2]
[357726971,1744387831722,-698.0,0.00019764,2]
[357726972,1744387831731,-212.84153104,0.000199,2]
[357726973,1744387831740,-166.37049195,0.000199,2]
[357726974,1744387831749,-211.15431575,0.00019903,2]
[357726975,1744387831760,-291.06,0.00019903,2]
[357726976,1744387831781,-476.17568425,0.00019903,2]
[357726977,1744387831790,-500.0,0.00019973,2]
[357726978,1744387831799,-162.71441075,0.00019973,2]
[357726979,1744387831808,-789.0,0.00019998,2]
[357726980,1744387831818,-1061.85078082,0.00019999,5]
[357726981,1744387831827,-1061.85078082,0.00019999,5]
[357726982,1744387831836,-1061.85078082,0.00019999,5]
[357726983,1744387831845,-1061.85078082,0.00019999,5]
[357726984,1744387831855,-1061.85078082,0.00019999,5]
[357726985,1744387831864,-1061.8507808,0.00019999,5]
[357726986,1744387831873,-1672.629,0.00019999,2]
[357726987,1744387831883,-176.28266285,0.00019999,2]
[357726988,1744387831892,-174.91306585,0.00019999,2]
[357726989,1744387831902,-7275.7804914,0.0002,2]
[357726990,1744387831923,-2193.95930416,0.0002,2]
[357726991,1744387831934,-294.84302077,0.0002,2]
[357726992,1744387831945,-2319.79584048,0.0002,2]
[357726993,1744387831956,-1574.39840479,0.0002,2]
[357726994,1744387831967,-2487.87541445,0.0002,2]
[357727006,1744387837851,-705.72902975,0.00019764,2]
[357727007,1744387837870,-415.27097025,0.00019764,2]
[357727008,1744387837879,-1244716.18426717,0.0002,2]
[357727009,1744387837892,-340033.78431041,0.0002,2]
[357727011,1744387839829,-378.87510719,0.0002,2]
[357727012,1744387840145,-39014.0475843,0.0002,2]
[357727263,1744387842857,-1226.54234139,0.0002,2]
[357727291,1744387845596,-5483.72845317,0.0002,2]
[357727300,1744387845688,-762.45715135,0.0002,2]
[357727308,1744387845788,-384.02519984,0.0002,2]
[357727313,1744388125083,8236.79,0.0003,30]
[357727318,1744388903093,1104.61,0.00017004,2]
[357727320,1744388929692,150.0,0.00018,2]
[357727326,1744388953908,315.0,0.00027425,30]
[357727334,1744389008347,150.0,0.00018,2]
[357727338,1744389031663,-1000.0,0.00018322,2]
[357727340,1744389031674,-323.61,0.00018888,2]
[357727342,1744389031684,-323.61,0.00018893,2]
[357727343,1744389031695,-323.61,0.00018898,2]
[357727344,1744389031704,-323.61,0.00018902,2]
[357727345,1744389031714,-60.36,0.00018907,2]
[357727346,1744389031725,-263.25,0.00018907,2]
[357727347,1744389031735,-323.61,0.00018912,2]
[357727348,1744389031745,-323.61,0.00018917,2]
[357727349,1744389031755,-323.61,0.00018922,2]
[357727350,1744389031764,-323.61,0.00018927,2]
[357727351,1744389031774,-281.02549141,0.00018932,2]
[357727352,1744389031786,-42.58450859,0.00018932,2]
[357727353,1744389031796,-323.61,0.00018937,2]
[357727354,1744389031805,-323.61,0.00018942,2]
[357727355,1744389031814,-662.02,0.00018946,2]
[357727356,1744389031824,-262.67,0.00018946,2]